bitfinex-derivatives/quotes_ETHF0:USTF0_20260125
["timestamp","ask_amount","ask_price","bid_price","bid_amount"]
[1769314731062,0.43693103,2945.1,2943.8,0.78465825]
[1769314731264,4.24546231,2945.0,2943.8,0.78465825]
[1769314731561,4.24546231,2944.9,2943.8,0.78465825]
[1769314731761,4.24546231,2944.8,2943.8,0.78465825]
[1769314731965,4.24546231,2944.7,2943.8,0.78465825]
[1769314732163,4.24546231,2944.6,2943.8,0.78465825]
[1769314732352,0.43693103,2945.1,2943.8,0.78465825]
[1769314732554,4.23962608,2945.0,2943.8,0.78465825]
[1769314732758,4.23962608,2944.9,2944.0,0.78465825]
[1769314733058,4.23962608,2944.8,2944.0,0.78465825]
[1769314733257,4.23962608,2944.7,2944.0,0.78465825]
[1769314733452,4.23962608,2944.6,2944.0,0.78465825]
[1769314733662,0.43693103,2945.1,2944.0,0.78465825]
[1769314733862,4.23930345,2945.0,2944.0,0.78465825]
[1769314734064,4.23930345,2944.9,2944.0,0.78465825]
[1769314734254,4.23930345,2944.8,2944.0,0.78465825]
[1769314734457,4.23930345,2944.7,2944.0,0.78465825]
[1769314734657,4.23930345,2944.6,2944.0,0.78465825]
[1769314734856,0.43693103,2945.1,2944.0,0.78465825]
[1769314735062,4.23906156,2945.0,2944.0,0.78465825]
[1769314735263,4.23906156,2944.9,2944.0,0.78465825]
[1769314735467,4.23906156,2944.8,2944.0,0.78465825]
[1769314735662,4.23906156,2944.7,2944.0,0.78465825]
[1769314735863,0.43693103,2945.1,2944.0,0.78465825]
[1769314736063,4.23871863,2945.0,2944.0,0.78465825]
[1769314736264,4.23871863,2944.9,2944.0,0.78465825]
[1769314736563,4.23871863,2944.8,2944.0,0.78465825]
[1769314736762,4.23871863,2944.7,2944.0,0.78465825]
[1769314736963,0.43693103,2945.1,2944.0,0.78465825]
[1769314737158,4.23846277,2945.0,2944.0,0.78465825]
[1769314737355,4.23846277,2944.9,2944.0,0.78465825]
[1769314737556,4.23846277,2944.8,2944.0,0.78465825]
[1769314737755,4.23846277,2944.7,2944.0,0.78465825]
[1769314737955,0.43693103,2945.1,2944.0,0.78465825]
[1769314738161,4.23825733,2945.0,2944.0,0.78465825]
[1769314738359,0.43693103,2945.1,2944.0,0.78465825]
[1769314738360,4.23825733,2944.9,2944.0,0.78465825]
[1769314738560,4.23825733,2944.8,2944.0,0.78465825]
[1769314738765,4.23825733,2944.7,2944.0,0.78465825]
[1769314738969,0.43693103,2945.1,2944.0,0.78465825]
[1769314739167,4.23809376,2945.0,2944.0,0.78465825]
[1769314739364,4.23809376,2944.9,2944.0,0.78465825]
[1769314739567,4.23809376,2944.8,2944.0,0.78465825]
[1769314739772,0.78465825,2945.3,2944.0,0.78465825]
[1769314739970,4.23768952,2945.2,2944.0,0.78465825]
[1769314740166,4.23768952,2945.1,2944.0,0.78465825]
[1769314740372,4.23768952,2945.0,2944.0,0.78465825]
[1769314740574,4.23768952,2945.0,2943.9,0.45473768]
[1769314740575,4.23768952,2944.9,2944.2,0.78465825]
[1769314740870,0.43693103,2945.4,2944.2,0.78465825]
[1769314741061,4.67457285,2945.3,2944.2,0.78465825]
[1769314741260,4.23764182,2945.2,2944.2,0.78465825]
[1769314741457,4.23764182,2945.1,2944.2,0.78465825]
[1769314741657,0.43693103,2945.3,2944.2,0.78465825]
[1769314741658,4.23764182,2945.0,2944.2,0.78465825]
[1769314741859,4.23764182,2944.9,2944.0,0.78465825]
[1769314742063,0.43693103,2945.3,2944.0,0.78465825]
[1769314742266,4.23362044,2945.2,2944.0,0.78465825]
[1769314742463,0.43693103,2945.3,2944.0,0.78465825]
[1769314742464,4.23362044,2945.1,2944.0,0.78465825]
[1769314742663,4.23362044,2945.0,2944.0,0.78465825]
[1769314742860,4.23362044,2944.9,2944.0,0.78465825]
[1769314743170,0.43693103,2945.3,2944.0,0.78465825]
[1769314743373,4.23307881,2945.2,2944.0,0.78465825]
[1769314743670,4.23307881,2945.1,2944.0,0.78465825]
[1769314743860,4.23307881,2945.0,2944.0,0.78465825]
[1769314744060,4.23307881,2944.9,2944.0,0.78465825]
[1769314744269,0.43693103,2945.3,2944.2,0.78465825]
[1769314744570,4.23256945,2945.2,2944.2,0.78465825]
[1769314744768,4.23256945,2945.1,2944.4,0.78465825]
[1769314744967,0.43220722,2945.6,2944.4,0.78465825]
[1769314745170,4.23237395,2945.5,2944.4,0.78465825]
[1769314745372,4.23237395,2945.4,2944.4,0.78465825]
[1769314745571,4.23237395,2945.3,2944.4,0.78465825]
[1769314745873,4.23237395,2945.2,2944.4,0.78465825]
[1769314746064,0.43220722,2945.6,2944.4,0.78465825]
[1769314746270,4.23030577,2945.5,2944.4,0.78465825]
[1769314746567,4.23030577,2945.4,2944.4,0.78465825]
[1769314746770,4.23030577,2945.3,2944.4,0.78465825]
[1769314746973,4.23030577,2945.2,2944.4,0.78465825]
[1769314747272,0.43220722,2945.6,2944.4,0.78465825]
[1769314747577,4.2294891,2945.5,2944.4,0.78465825]
[1769314747769,4.2294891,2945.4,2944.4,0.78465825]
[1769314747967,4.2294891,2945.3,2944.4,0.78465825]
[1769314748166,4.2294891,2945.2,2944.4,0.78465825]
[1769314748368,0.43220722,2945.6,2944.4,0.78465825]
[1769314748575,4.22888756,2945.5,2944.4,0.78465825]
[1769314748871,4.22888756,2945.4,2944.4,0.78465825]
[1769314749068,4.22888756,2945.3,2944.4,0.78465825]
[1769314749269,0.43220722,2945.6,2944.4,0.78465825]
[1769314749470,4.21263991,2945.5,2944.4,0.78465825]
[1769314749771,4.21263991,2945.4,2944.4,0.78465825]
[1769314749973,4.21263991,2945.3,2944.4,0.78465825]
[1769314750272,0.43220722,2945.6,2944.4,0.78465825]
[1769314750473,4.2122695,2945.5,2944.4,0.78465825]
[1769314750676,4.2122695,2945.4,2944.4,0.78465825]
[1769314750877,4.2122695,2945.3,2944.4,0.78465825]
[1769314751074,0.43220722,2945.6,2944.4,0.78465825]
[1769314751378,4.21200036,2945.5,2944.4,0.78465825]
[1769314751676,4.21200036,2945.4,2944.4,0.78465825]
[1769314751875,4.21200036,2945.3,2944.4,0.78465825]
[1769314752077,0.43220722,2945.6,2944.4,0.78465825]
[1769314752278,4.21178654,2945.5,2944.4,0.78465825]
[1769314752480,4.21178654,2945.4,2944.4,0.78465825]
[1769314752680,4.21178654,2945.3,2944.4,0.78465825]
[1769314752882,0.43220722,2945.6,2944.4,0.78465825]
[1769314753075,4.21180623,2945.5,2944.4,0.78465825]
[1769314753271,4.21180623,2945.4,2944.4,0.78465825]
[1769314753477,4.21180623,2945.3,2944.4,0.78465825]
[1769314753678,0.43220722,2945.6,2944.4,0.78465825]
[1769314753881,4.21169598,2945.5,2944.4,0.78465825]
[1769314754176,4.21169598,2945.4,2944.4,0.78465825]
[1769314754376,4.21169598,2945.3,2944.4,0.78465825]
[1769314754575,0.43220722,2945.6,2944.4,0.78465825]
[1769314754779,4.21166377,2945.5,2944.4,0.78465825]
[1769314754973,4.21166377,2945.4,2944.4,0.78465825]
[1769314755173,4.21166377,2945.3,2944.4,0.78465825]
[1769314755376,0.43220722,2945.6,2944.4,0.78465825]
[1769314755673,4.21170532,2945.5,2944.4,0.78465825]
[1769314755874,4.21170532,2945.4,2944.4,0.78465825]
[1769314756077,4.21170532,2945.3,2944.4,0.78465825]
[1769314756280,0.43220722,2945.6,2944.4,0.78465825]
[1769314756478,4.21183459,2945.5,2944.4,0.78465825]
[1769314756670,4.21183459,2945.4,2944.4,0.78465825]
[1769314756874,4.21183459,2945.3,2944.4,0.78465825]
[1769314757071,0.43220722,2945.6,2944.4,0.78465825]
[1769314757271,4.21181518,2945.5,2944.4,0.78465825]
[1769314757478,4.21181518,2945.4,2944.4,0.78465825]
[1769314757780,4.21181518,2945.3,2944.4,0.78465825]
[1769314757978,0.43220722,2945.6,2944.4,0.78465825]
[1769314758178,4.21203647,2945.5,2944.4,0.78465825]
[1769314758377,4.21203647,2945.4,2944.4,0.78465825]
[1769314758579,4.21203647,2945.3,2944.4,0.78465825]
[1769314758776,0.43220722,2945.6,2944.4,0.78465825]
[1769314758974,4.21232844,2945.5,2944.4,0.78465825]
[1769314759181,4.21232844,2945.4,2944.4,0.78465825]
[1769314759380,4.21232844,2945.3,2944.4,0.78465825]
[1769314759581,0.43220722,2945.6,2944.4,0.78465825]
[1769314759774,4.21271604,2945.5,2944.4,0.78465825]
[1769314759975,4.21271604,2945.4,2944.4,0.78465825]
[1769314760179,4.21271604,2945.3,2944.4,0.78465825]
[1769314760383,4.2132134,2945.2,2944.4,0.78465825]
[1769314760574,0.43220722,2945.6,2944.4,0.78465825]
[1769314760776,4.2132134,2945.5,2944.4,0.78465825]
[1769314760971,4.2132134,2945.4,2944.4,0.78465825]
[1769314761177,4.2132134,2945.3,2944.4,0.78465825]
[1769314761388,4.2132134,2945.2,2944.4,0.78465825]
[1769314761577,0.43220722,2945.6,2944.4,0.78465825]
[1769314761778,4.21350835,2945.5,2944.4,0.78465825]
[1769314761980,4.21350835,2945.4,2944.4,0.78465825]
[1769314762183,4.21350835,2945.3,2944.4,0.78465825]
[1769314762379,4.21350835,2945.2,2944.4,0.78465825]
[1769314762578,0.43220722,2945.6,2944.4,0.78465825]
[1769314762779,4.2138694,2945.5,2944.4,0.78465825]
[1769314762979,4.2138694,2945.4,2944.4,0.78465825]
[1769314763180,4.2138694,2945.3,2944.4,0.78465825]
[1769314763379,4.2138694,2945.2,2943.1,0.47236818]
[1769314763582,0.78465825,2944.4,2943.1,0.47236818]
[1769314763785,4.2138694,2944.3,2943.1,0.47236818]
[1769314765385,0.78465825,2944.2,2943.1,0.47236818]
[1769314765582,4.2138694,2944.1,2943.1,0.47236818]
[1769314766087,0.78465825,2944.2,2943.1,0.47236818]
[1769314770095,0.78465825,2944.0,2942.9,1.99874375]
[1769314778100,0.78465825,2944.0,2942.9,2.46456752]
[1769314786901,0.03888392,2944.4,2942.9,2.46456752]
[1769314787102,4.21873421,2944.3,2942.9,2.46456752]
[1769314787403,0.78507034,2944.5,2943.0,0.46562149]
[1769314787602,4.21992383,2944.4,2943.0,0.46562149]
[1769314787806,4.21992383,2944.3,2943.0,0.46562149]
[1769314788102,0.78507034,2944.5,2943.0,0.46562149]
[1769314788299,4.22135417,2944.4,2943.0,0.46562149]
[1769314788498,4.22135417,2944.3,2943.0,0.46562149]
[1769314788700,0.78507034,2944.5,2943.0,0.46562149]
[1769314788900,4.22135392,2944.4,2943.0,0.46562149]
[1769314789105,4.22135392,2944.3,2943.0,0.46562149]
[1769314789304,4.22135392,2944.2,2943.0,0.46562149]
[1769314789502,0.78507034,2944.5,2943.0,0.46562149]
[1769314789703,4.22306744,2944.4,2943.0,0.46562149]
[1769314789901,4.22306744,2944.3,2943.0,0.46562149]
[1769314790099,4.22306744,2944.2,2943.0,0.46562149]
[1769314790294,0.78507034,2944.5,2943.0,0.46562149]
[1769314790499,4.22515708,2944.4,2943.0,0.46562149]
[1769314790799,4.22515708,2944.3,2943.0,0.46562149]
[1769314791098,4.22515708,2944.2,2943.0,0.46562149]
[1769314791300,4.22515708,2944.1,2943.0,0.46562149]
[1769314791509,0.78507034,2944.5,2943.0,0.46562149]
[1769314791814,4.2278017,2944.4,2943.0,0.46562149]
[1769314792011,4.2278017,2944.3,2943.0,0.46562149]
[1769314792212,4.2278017,2944.2,2943.0,0.46562149]
[1769314792412,4.2278017,2944.1,2943.0,0.46562149]
[1769314792612,4.2278017,2944.0,2943.0,0.46562149]
[1769314792814,0.78507034,2944.5,2943.0,0.46562149]
[1769314793012,4.23146121,2944.4,2943.0,0.46562149]
[1769314793213,4.23146121,2944.3,2943.0,0.46562149]
[1769314793410,4.23146121,2944.2,2943.0,0.46562149]
[1769314793612,4.23146121,2944.1,2943.0,0.46562149]
[1769314793813,4.23146121,2944.0,2943.0,0.46562149]
[1769314794110,4.23146121,2943.9,2943.0,0.46562149]
[1769314794312,0.78507034,2944.5,2943.0,0.46562149]
[1769314794512,4.24067134,2944.4,2943.0,0.46562149]
[1769314794714,4.24067134,2944.3,2943.0,0.46562149]
[1769314794910,4.24067134,2944.2,2943.0,0.46562149]
[1769314795111,4.24067134,2944.1,2943.0,0.46562149]
[1769314795419,4.24067134,2944.0,2943.0,0.46562149]
[1769314795611,4.24067134,2943.9,2943.0,0.46562149]
[1769314795912,0.78507034,2944.5,2943.0,0.46562149]
[1769314796207,4.24070212,2944.4,2943.0,0.46562149]
[1769314796506,4.24070212,2944.3,2943.0,0.46562149]
[1769314796709,4.24070212,2944.2,2943.0,0.46562149]
[1769314796917,4.24070212,2944.1,2943.0,0.46562149]
[1769314797116,4.24070212,2944.0,2943.0,0.46562149]
[1769314797317,4.24070212,2943.9,2943.0,0.46562149]
[1769314797517,4.24070212,2943.8,2943.0,0.46562149]
[1769314797819,0.78507034,2944.5,2943.0,0.46562149]
[1769314798016,4.24075832,2944.4,2943.0,0.46562149]
[1769314798216,4.24075832,2944.3,2943.0,0.46562149]
[1769314798515,4.24075039,2944.2,2943.0,0.46562149]
[1769314798718,4.24075039,2944.1,2943.0,0.46562149]
[1769314798908,4.24075039,2944.0,2943.0,0.46562149]
[1769314799113,4.24075039,2943.9,2943.0,0.46562149]
[1769314799319,4.24075039,2943.8,2943.0,0.46562149]
[1769314799514,0.78507034,2944.5,2943.0,0.46562149]
[1769314799715,4.24074624,2944.4,2943.0,0.46562149]
[1769314799915,4.24074624,2944.3,2943.0,0.46562149]
[1769314800110,4.24074624,2944.2,2943.0,0.46562149]
[1769314800312,4.24074624,2944.1,2943.0,0.46562149]
[1769314800616,4.24074624,2944.0,2943.0,0.46562149]
[1769314800817,4.24074624,2943.9,2943.0,0.46562149]
[1769314801015,0.17006,2944.7,2943.0,0.46562149]
[1769314803220,6.20660361,2945.2,2943.2,0.52739739]
[1769314803422,0.95509034,2945.3,2943.2,0.52739739]
[1769314804321,0.92063278,2944.9,2943.3,0.52739739]
[1769314804521,0.92063278,2944.9,2943.3,2.52239739]
[1769314804815,0.13556244,2944.8,2943.3,0.52739739]
[1769314805021,0.13779048,2944.7,2943.0,1.995]
[1769314805219,0.13779048,2944.7,2943.0,2.52239739]
[1769314806520,0.13779048,2944.7,2943.1,0.52739739]
[1769314810822,0.30785048,2944.7,2943.1,0.52739739]
[1769314811520,0.78507034,2944.5,2943.1,0.52739739]
[1769314813125,4.21543699,2944.4,2943.1,0.52739739]
[1769314813326,4.21543699,2944.3,2943.1,0.52739739]
[1769314813626,4.21543699,2944.2,2943.1,0.52739739]
[1769314813831,4.21543699,2944.1,2943.1,0.52739739]
[1769314814020,4.21543699,2944.0,2943.1,0.52739739]
[1769314814222,0.17007,2944.6,2943.1,0.52739739]
[1769314814424,4.2154989,2944.5,2943.1,0.52739739]
[1769314814623,4.2154989,2944.4,2943.1,0.52739739]
[1769314814828,4.2154989,2944.3,2943.1,0.52739739]
[1769314815024,4.2154989,2944.2,2943.1,0.52739739]
[1769314815225,4.2154989,2944.1,2943.1,0.52739739]
[1769314815421,4.2154989,2944.0,2943.1,0.52739739]
[1769314815627,0.78507034,2944.5,2943.1,0.52739739]
[1769314815828,4.21553208,2944.4,2943.1,0.52739739]
[1769314816029,0.78507034,2944.5,2943.1,0.52739739]
[1769314816030,4.21553208,2944.3,2943.1,0.52739739]
[1769314816229,4.21553208,2944.2,2943.1,0.52739739]
[1769314816527,4.21553208,2944.1,2943.1,0.52739739]
[1769314816722,4.21553208,2944.0,2943.1,0.52739739]
[1769314816923,0.17007,2944.6,2943.1,0.52739739]
[1769314817121,4.21556165,2944.5,2943.1,0.52739739]
[1769314817329,4.21556165,2944.4,2943.1,0.52739739]
[1769314817628,4.21556165,2944.3,2943.1,0.52739739]
[1769314817821,4.21556165,2944.2,2943.1,0.52739739]
[1769314818018,4.21556165,2944.1,2943.1,0.52739739]
[1769314818221,4.21556165,2944.0,2943.1,0.52739739]
[1769314818423,0.17007,2944.6,2943.1,0.52739739]
[1769314818630,4.21560941,2944.5,2943.1,0.52739739]
[1769314818825,4.21560941,2944.4,2943.1,0.52739739]
[1769314819028,4.21560941,2944.3,2943.1,0.52739739]
[1769314819324,4.21560941,2944.2,2943.1,0.52739739]
[1769314819516,4.21560941,2944.1,2943.1,0.52739739]
[1769314819721,4.21560941,2944.0,2943.1,0.52739739]
[1769314819919,0.17007,2944.6,2943.1,0.52739739]
[1769314820118,4.21562822,2944.5,2943.1,0.52739739]
[1769314820423,4.21562822,2944.4,2943.1,0.52739739]
[1769314820723,4.21562822,2944.3,2943.1,0.52739739]
[1769314820920,4.21562822,2944.2,2943.1,0.52739739]
[1769314821124,4.21562822,2944.1,2943.1,0.52739739]
[1769314821331,4.21562822,2944.0,2943.1,0.52739739]
[1769314821531,0.17007,2944.6,2943.1,0.52739739]
[1769314821735,4.21567166,2944.5,2943.1,0.52739739]
[1769314821934,4.21567166,2944.4,2943.1,0.52739739]
[1769314822126,4.21567166,2944.3,2943.1,0.52739739]
[1769314822326,4.21567166,2944.2,2943.1,0.52739739]
[1769314822624,4.21567166,2944.1,2943.1,0.52739739]
[1769314822827,4.21567166,2944.0,2943.1,0.52739739]
[1769314823022,0.17007,2944.6,2943.1,0.52739739]
[1769314823228,4.21565253,2944.5,2943.1,0.52739739]
[1769314823438,4.21565253,2944.4,2943.1,0.52739739]
[1769314823737,4.21565253,2944.3,2943.1,0.52739739]
[1769314823939,4.21565253,2944.2,2943.1,0.52739739]
[1769314824129,4.21565253,2944.1,2943.1,0.52739739]
[1769314824426,4.21565253,2944.0,2943.1,0.52739739]
[1769314824627,0.17007,2944.6,2943.1,0.52739739]
[1769314824841,4.21574106,2944.5,2943.1,0.52739739]
[1769314825037,4.21574106,2944.4,2943.1,0.52739739]
[1769314825229,4.21574106,2944.3,2943.1,0.52739739]
[1769314825431,4.21574106,2944.2,2943.1,0.52739739]
[1769314825630,4.21574106,2944.1,2943.1,0.52739739]
[1769314825930,4.21574106,2944.0,2943.1,0.52739739]
[1769314826130,0.17007,2944.6,2943.1,0.52739739]
[1769314826325,4.21579277,2944.5,2943.1,0.52739739]
[1769314826534,4.21579277,2944.4,2943.1,0.52739739]
[1769314826737,4.21579277,2944.3,2943.1,0.52739739]
[1769314826936,4.21579277,2944.2,2943.1,0.52739739]
[1769314827235,4.21579277,2944.1,2943.1,0.52739739]
[1769314827440,4.21579277,2944.0,2943.1,0.52739739]
[1769314827636,0.17007,2944.6,2943.1,0.52739739]
[1769314827938,4.21584409,2944.5,2943.1,0.52739739]
[1769314828236,4.21584409,2944.4,2943.1,0.52739739]
[1769314828426,4.21584409,2944.3,2943.1,0.52739739]
[1769314828625,4.21584409,2944.2,2943.1,0.52739739]
[1769314828832,4.21584409,2944.1,2943.1,0.52739739]
[1769314829128,4.21584409,2944.0,2943.1,0.52739739]
[1769314829324,0.17007,2944.6,2943.1,0.52739739]
[1769314829525,4.2159211,2944.5,2943.1,0.52739739]
[1769314829737,4.2159211,2944.4,2943.1,0.52739739]
[1769314829934,4.2159211,2944.3,2943.1,0.52739739]
[1769314830236,4.2159211,2944.2,2943.1,0.52739739]
[1769314830437,4.2159211,2944.1,2943.1,0.52739739]
[1769314830637,0.17007,2944.6,2943.1,0.52739739]
[1769314830638,4.2159211,2944.0,2943.1,0.52739739]
[1769314830836,0.17007,2944.6,2943.1,0.52739739]
[1769314831037,4.21597305,2944.5,2943.1,0.52739739]
[1769314831237,4.21597305,2944.4,2943.1,0.52739739]
[1769314831438,4.21597305,2944.3,2943.1,0.52739739]
[1769314831639,4.21597305,2944.2,2943.1,0.52739739]
[1769314831837,4.21597305,2944.1,2943.1,0.52739739]
[1769314832140,4.21597305,2944.0,2943.1,0.52739739]
[1769314832342,0.17007,2944.6,2943.1,0.52739739]
[1769314832539,4.21600476,2944.5,2943.1,0.52739739]
[1769314832740,4.21600476,2944.4,2943.1,0.52739739]
[1769314832942,4.21600476,2944.3,2943.1,0.52739739]
[1769314833141,4.21600476,2944.2,2943.1,0.52739739]
[1769314833342,4.21600476,2944.1,2943.1,0.52739739]
[1769314833546,4.21600476,2944.0,2943.1,0.52739739]
[1769314833740,0.17007,2944.6,2943.1,0.52739739]
[1769314833939,4.21618678,2944.5,2943.1,0.52739739]
[1769314834237,4.21618678,2944.4,2943.1,0.52739739]
[1769314834438,4.21618678,2944.3,2943.1,0.52739739]
[1769314834639,4.21618678,2944.2,2943.1,0.52739739]
[1769314834839,4.21618678,2944.1,2943.1,0.52739739]
[1769314835042,4.21618678,2944.0,2943.1,0.52739739]
[1769314835240,0.17007,2944.6,2943.1,0.52739739]
[1769314835442,4.21795585,2944.5,2943.1,0.52739739]
[1769314835642,4.21795585,2944.4,2943.1,0.52739739]
[1769314835844,4.21795585,2944.3,2943.1,0.52739739]
[1769314836049,4.21795585,2944.2,2943.1,0.52739739]
[1769314836249,4.21795585,2944.1,2943.1,0.52739739]
[1769314836544,4.21795585,2944.0,2943.1,0.52739739]
[1769314836745,0.17007,2944.6,2943.1,0.52739739]
[1769314837047,4.21824146,2944.5,2943.1,0.52739739]
[1769314837247,4.21824146,2944.4,2943.1,0.52739739]
[1769314837544,4.21824146,2944.3,2943.1,0.52739739]
[1769314837744,0.17007,2944.6,2943.1,0.52739739]
[1769314837745,4.21824146,2944.2,2943.1,0.52739739]
[1769314837944,4.21824146,2944.1,2943.1,0.52739739]
[1769314838145,4.21824146,2944.0,2943.1,0.52739739]
[1769314838345,0.17007,2944.6,2943.1,0.52739739]
[1769314838545,4.21896295,2944.5,2943.1,0.52739739]
[1769314838745,4.21896295,2944.4,2943.1,0.52739739]
[1769314839048,0.17007,2944.6,2943.1,0.52739739]
[1769314839049,4.21896295,2944.3,2943.1,0.52739739]
[1769314839347,4.21896295,2944.2,2943.1,0.52739739]
[1769314839547,4.21896295,2944.1,2943.1,0.52739739]
[1769314839747,4.21896295,2944.0,2943.1,0.52739739]
[1769314839949,0.17007,2944.6,2943.1,0.52739739]
[1769314840157,4.21760271,2944.5,2943.1,0.52739739]
[1769314840448,4.21760271,2944.4,2943.1,0.52739739]
[1769314840648,4.21760271,2944.3,2943.1,0.52739739]
[1769314840842,4.21760271,2944.2,2943.1,0.52739739]
[1769314841038,4.21760271,2944.1,2943.1,0.52739739]
[1769314841249,4.21760271,2944.0,2943.1,0.52739739]
[1769314841453,4.21760271,2943.9,2943.1,0.52739739]
[1769314841642,0.17007,2944.6,2943.1,0.52739739]
[1769314841846,4.21931702,2944.5,2943.1,0.52739739]
[1769314842046,0.17007,2944.6,2943.1,0.52739739]
[1769314842047,4.21931702,2944.4,2943.1,0.52739739]
[1769314842253,4.21931702,2944.3,2943.1,0.52739739]
[1769314842440,4.21931702,2944.2,2943.1,0.52739739]
[1769314842647,4.21931702,2944.1,2943.1,0.52739739]
[1769314842846,4.21931702,2944.0,2943.1,0.52739739]
[1769314843048,4.21931702,2943.9,2943.1,0.52739739]
[1769314843245,0.17007,2944.6,2943.1,0.52739739]
[1769314843445,4.21929357,2944.5,2943.1,0.52739739]
[1769314843647,4.21929357,2944.4,2943.1,0.52739739]
[1769314843847,4.21929357,2944.3,2943.1,0.52739739]
[1769314844152,4.21929357,2944.2,2943.1,0.52739739]
[1769314844350,4.21929357,2944.1,2943.1,0.52739739]
[1769314844653,4.21929357,2944.0,2943.1,0.52739739]
[1769314844955,4.21929357,2943.9,2943.1,0.52739739]
[1769314845253,0.78507034,2944.5,2943.1,0.52739739]
[1769314845455,4.21928515,2944.4,2943.1,0.52739739]
[1769314845653,4.21928515,2944.3,2943.1,0.52739739]
[1769314845852,4.21928515,2944.2,2943.1,0.52739739]
[1769314846152,4.21928515,2944.1,2943.1,0.52739739]
[1769314846354,4.21928515,2944.0,2943.1,0.52739739]
[1769314846551,4.21928515,2943.9,2943.1,0.52739739]
[1769314846753,0.37913892,2944.6,2943.1,0.52739739]
[1769314846949,4.219277,2944.5,2943.1,0.52739739]
[1769314847253,4.219277,2944.4,2943.1,0.52739739]
[1769314847553,4.219277,2944.3,2943.1,0.52739739]
[1769314847752,4.219277,2944.2,2943.1,0.52739739]
[1769314847953,4.219277,2944.1,2943.1,0.52739739]
[1769314848156,4.219277,2944.0,2943.1,0.52739739]
[1769314848361,4.219277,2943.9,2943.1,0.52739739]
[1769314848654,0.37913892,2944.6,2943.1,0.52739739]
[1769314848854,0.78512059,2944.1,2943.1,0.52739739]
[1769314849055,4.21926305,2944.0,2943.1,0.52739739]
[1769314849245,4.21926305,2943.9,2943.1,0.52739739]
[1769314849445,0.78512059,2944.1,2943.1,0.52739739]
[1769314849645,4.21925714,2944.0,2943.1,0.52739739]
[1769314849848,4.21925714,2943.9,2943.1,0.52739739]
[1769314850049,0.78512059,2944.1,2943.1,0.52739739]
[1769314850254,4.21925765,2944.0,2943.1,0.52739739]
[1769314850453,4.21925765,2943.9,2943.1,0.52739739]
[1769314850755,0.78512059,2944.1,2943.1,0.52739739]
[1769314850954,4.21924089,2944.0,2943.1,0.52739739]
[1769314851149,4.21924089,2943.9,2943.1,0.52739739]
[1769314851346,0.78512059,2944.1,2943.1,0.52739739]
[1769314851552,4.21922581,2944.0,2943.1,0.52739739]
[1769314851750,4.21922581,2943.9,2943.1,0.52739739]
[1769314851951,0.78512059,2944.1,2943.1,0.52739739]
[1769314852151,4.21922581,2944.0,2943.1,0.52739739]
[1769314852351,4.21922581,2943.9,2943.1,0.52739739]
[1769314852553,0.78512059,2944.1,2943.1,0.52739739]
[1769314852753,4.21921051,2944.0,2943.1,0.52739739]
[1769314852953,4.21921051,2943.9,2943.1,0.52739739]
[1769314853155,0.78512059,2944.1,2943.1,0.52739739]
[1769314853461,4.21919732,2944.0,2943.1,0.52739739]
[1769314853659,4.21919732,2943.9,2943.1,0.52739739]
[1769314853849,0.78512059,2944.1,2943.1,0.52739739]
[1769314854053,4.2191972,2944.0,2943.1,0.52739739]
[1769314854353,4.2191972,2943.9,2943.1,0.52739739]
[1769314854552,0.78512059,2944.1,2943.1,0.52739739]
[1769314854748,4.21918178,2944.0,2943.1,0.52739739]
[1769314854954,4.21918178,2943.9,2943.1,0.52739739]
[1769314855160,0.78512059,2944.1,2943.1,0.52739739]
[1769314855355,4.21916784,2944.0,2943.1,0.52739739]
[1769314855555,4.21916784,2943.9,2943.1,0.52739739]
[1769314855756,0.78512059,2944.1,2943.1,0.52739739]
[1769314856059,4.21916745,2944.0,2943.1,0.52739739]
[1769314856251,4.21916745,2943.9,2943.1,0.52739739]
[1769314856457,0.78512059,2944.3,2943.1,0.52739739]
[1769314856657,4.21914949,2944.2,2943.1,0.52739739]
[1769314856856,4.21914949,2944.1,2943.1,0.52739739]
[1769314857057,4.21914949,2944.0,2943.1,0.52739739]
[1769314857257,4.21914949,2943.9,2943.1,0.52739739]
[1769314857465,0.78512059,2944.3,2943.1,0.52739739]
[1769314857664,4.2191467,2944.2,2943.1,0.52739739]
[1769314857864,4.2191467,2944.1,2943.1,0.52739739]
[1769314858163,4.2191467,2944.0,2943.1,0.52739739]
[1769314858364,4.2191467,2943.9,2943.1,0.52739739]
[1769314858563,0.78512059,2944.3,2943.1,0.52739739]
[1769314858763,4.21914665,2944.2,2943.1,0.52739739]
[1769314859058,4.21914665,2944.1,2943.1,0.52739739]
[1769314859264,4.21914665,2944.0,2943.1,0.52739739]
[1769314859563,4.21914665,2943.9,2943.1,0.52739739]
[1769314859762,0.78512059,2944.3,2943.1,0.52739739]
[1769314859958,4.21911025,2944.2,2943.1,0.52739739]
[1769314860264,4.21911025,2944.1,2943.1,0.52739739]
[1769314860460,4.21911025,2944.0,2943.1,0.52739739]
[1769314860654,4.21911025,2943.9,2943.1,0.52739739]
[1769314860860,0.78512059,2944.5,2943.1,0.52739739]
[1769314861068,4.21910212,2944.4,2943.1,0.52739739]
[1769314861357,4.21910212,2944.3,2943.1,0.52739739]
[1769314861563,4.21910212,2944.2,2943.1,0.52739739]
[1769314861864,4.21910212,2944.1,2943.1,0.52739739]
[1769314862054,4.21910212,2944.0,2943.1,0.52739739]
[1769314862254,4.21910212,2943.9,2943.1,0.52739739]
[1769314862457,0.78512059,2944.5,2943.1,0.52739739]
[1769314862672,4.21911726,2944.4,2943.1,0.52739739]
[1769314862865,4.21911726,2944.3,2943.1,0.52739739]
[1769314863059,4.21911726,2944.2,2943.1,0.52739739]
[1769314863357,4.21911726,2944.1,2943.1,0.52739739]
[1769314863559,4.21911726,2944.0,2943.1,0.52739739]
[1769314863763,4.21911726,2943.9,2943.1,0.52739739]
[1769314864054,0.78512059,2944.5,2943.1,0.52739739]
[1769314864257,0.78512059,2944.3,2943.1,0.52739739]
[1769314864561,4.21913021,2944.2,2943.1,0.52739739]
[1769314866562,4.21913021,2944.1,2943.1,0.52739739]
[1769314866762,4.21913021,2944.0,2943.1,0.52739739]
[1769314867069,4.21913021,2943.9,2943.1,0.52739739]
[1769314867262,0.78512059,2944.4,2943.1,0.52739739]
[1769314867461,4.21910685,2944.3,2943.1,0.52739739]
[1769314867661,4.21910685,2944.2,2943.1,0.52739739]
[1769314867856,4.21910685,2944.1,2943.1,0.52739739]
[1769314868061,4.21910685,2944.0,2943.1,0.52739739]
[1769314868266,4.21910685,2943.9,2943.1,0.52739739]
[1769314868469,0.78512059,2944.4,2943.1,0.52739739]
[1769314868667,4.21908881,2944.3,2943.1,0.52739739]
[1769314868869,4.21908881,2944.2,2943.1,0.52739739]
[1769314869069,4.21908881,2944.1,2943.1,0.52739739]
[1769314869268,4.21908881,2944.0,2943.1,0.52739739]
[1769314869466,4.21908881,2943.9,2943.1,0.52739739]
[1769314869670,0.95519059,2944.6,2943.1,0.52739739]
[1769314869863,4.22150947,2944.5,2943.3,0.53920737]
[1769314870065,4.22150947,2944.4,2943.3,0.53920737]
[1769314870266,4.22150947,2944.3,2943.3,0.53920737]
[1769314870466,4.22150947,2944.2,2943.3,0.53920737]